Cogmind - Beta 13 @@@ ROGUE MODE // 2024.03.02 @ 19:07:12 Player: Geordi Result: Destroyed by C-17 Slicer with Blade Saw Performance ------------- Evolutions (3) 1500 Regions Visited (7) 1400 Robots Destroyed (120) 600 Value Destroyed (4071) 4071 Prototype IDs (17) 340 Alien Tech Used (0) 0 Bonus (1225) 1225 TOTAL SCORE: 9136 Bonus ------- High Alert Combat Kills 725 Entered DSFs 500 Cogmind --------- Core Integrity 0/700 Matter 204/300 Energy 58/100 System Corruption 14% Temperature Cool (0) Movement Core (50) Location -7/DSF Parts ------- > --- POWER (1) -------- (None) > --- PROPULSION (5) --- (None) > --- UTILITY (4) ------ (None) > --- WEAPON (3) ------- (None) > --- INVENTORY (5) ---- Precision Shock Rifle Gauss Rifle Gauss Rifle Peak State ------------ > --- POWER ------------ Enhanced Nuclear Core > --- PROPULSION ------- Aluminum Leg Aluminum Leg VSS Leg Myomer Leg > --- UTILITY ---------- Improved Heat Sink Large Storage Unit Hardened Heavy Armor Plating > --- WEAPON ----------- Precision Shock Rifle Heavy Laser Mini Assault Cannon > --- INVENTORY -------- Deuterium Engine Heavy Deuterium Engine Micro Nuclear Core Improved Heat Sink Improved Cooling System Advanced ECM Suite Utility Shielding Hacking Suite Precision Shock Rifle Heavy Particle Gun Heavy Laser Minigun Gauss Rifle Gauss Rifle Assault Cannon [Rating: 48] Favorites ----------- Power Ion Engine Engine Ion Engine Power Core Light Nuclear Core Propulsion Aluminum Leg Leg Aluminum Leg Flight Unit Xenon Bombardment Thruster Utility Large Storage Unit Device Cooling System Storage Large Storage Unit Processor Core Analyzer Protection Improved Utility Shielding Weapon Heavy Laser Energy Gun Heavy Laser Ballistic Gun Gauss Rifle Ballistic Cannon Flak Cannon Launcher Missile Launcher Build | -11 -10 -9 -8 -7 -7 -7 -7 ------- Run | Yrd Mat Mat Mat Fac Was Fac DSF Slots Evolved 6 | . . 2 2 2 . . . Power . | . . . . . . . . Propulsion 3 | . . 2 . 1 . . . Utility 2 | . . . 2 . . . . Weapon 1 | . . . . 1 . . . Parts Attached 125 | 6 7 31 44 27 4 1 5 Power 16 | 1 2 3 5 4 1 . . Engine 12 | 1 2 3 3 2 1 . . Core 4 | . . . 2 2 . . . Reactor . | . . . . . . . . Propulsion 47 | 2 2 15 14 9 1 . 4 Treads . | . . . . . . . . Leg 40 | 2 2 15 13 7 1 . . Wheel . | . . . . . . . . Hover . | . . . . . . . . Flight 7 | . . . 1 2 . . 4 Utility 21 | 1 1 2 10 6 1 . . Device 9 | . 1 1 5 2 . . . Storage 4 | 1 . 1 1 1 . . . Processor 2 | . . . 1 1 . . . Hackware . | . . . . . . . . Protection 6 | . . . 3 2 1 . . Artifact . | . . . . . . . . Weapon 41 | 2 2 11 15 8 1 1 1 Energy Gun 21 | 2 . 7 6 4 1 . 1 Energy Cannon . | . . . . . . . . Ballistic Gun 12 | . 2 2 4 3 . 1 . Ballistic Cannon 3 | . . . 2 1 . . . Launcher 5 | . . 2 3 . . . . Special Weapon . | . . . . . . . . Impact Weapon . | . . . . . . . . Slashing Weapon . | . . . . . . . . Piercing Weapon . | . . . . . . . . Special Melee Weapon . | . . . . . . . . Unidentified Prototypes 4 | . . . . 2 1 . 1 Parts Lost 43 | . . 1 26 6 5 . 5 Power 5 | . . . 4 . 1 . . Propulsion 22 | . . 1 12 3 2 . 4 Utility 9 | . . . 6 2 1 . . Weapon 7 | . . . 4 1 1 . 1 Highest Loss Streak 10 | . . 1 10 3 2 . 5 To Critical Strikes 1 | . . . 1 . . . . Average Slot Usage (%) 91 | . 94 99 91 93 31 7 20 Engine 7 | . 14 11 5 4 . . . Core 1 | . . . 2 2 1 . . Leg 32 | . 28 43 28 32 7 . . Flight 1 | . . . 2 1 . . 10 Device 12 | . 9 11 13 15 5 . . Storage 9 | . 14 11 8 8 3 . . Processor 1 | . . . 3 1 . . . Protection 3 | . . . 7 3 4 . . Energy Gun 12 | . 16 17 8 11 4 . 3 Ballistic Gun 6 | . 11 4 6 7 . 7 6 Ballistic Cannon 1 | . . . 2 2 2 . . Naked Turns 25 | . . . . . 18 6 1 Heaviest Build 61 | 12 13 35 47 61 61 4 7 Greatest Support 57 | 20 20 46 50 50 57 3 20 Greatest Overweight (x) 13 | . . . 13 10 9 1 1 Average Overweight (x) . | . . . . . 1 . . Largest Inventory Capacity 15 | 8 8 15 15 15 15 5 5 Average Capacity 12 | 7 8 11 14 15 9 5 5 Most Carried 15 | 4 8 15 15 15 15 4 5 Average Carried 11 | 2 7 10 13 14 9 3 3 Final Capacity 15 | 8 8 15 15 15 5 5 5 Final Carried 15 | 4 8 14 14 15 4 4 3 Class Distribution -------------------- 41% | Mutant 38% | Scavenger-Mutant 10% | Scavenger-Tank 7% | Scavenger-Gunner Dominant Class ---------------- Mutant | -10/Materials Mutant | -9/Materials Scavenger-Mutant | -8/Materials Scavenger-Tank | -7/Factory Mutant | -7/Waste Mutant | -7/Factory Mutant | -7/DSF Resources | -11 -10 -9 -8 -7 -7 -7 -7 ----------- Run | Yrd Mat Mat Mat Fac Was Fac DSF Matter Collected 2308 | 198 195 455 801 607 45 . 7 Remotely . | . . . . . . . . Salvage Created 4615 | . 294 1378 1762 1166 . . 15 Parts 242 | . 22 79 98 43 . . . Haulers Intercepted 7 | . . 1 4 2 . . . Recyclers Shooed 2 | . 1 . 1 . . . . Parts Field Recycled . | . . . . . . . . Retrieved Matter . | . . . . . . . . Parts Self-Destructed . | . . . . . . . . Prevented . | . . . . . . . . Kills | -11 -10 -9 -8 -7 -7 -7 -7 ------- Run | Yrd Mat Mat Mat Fac Was Fac DSF Combat Hostiles Destroyed 92 | . 10 33 30 19 . . . Guns 73 | . 10 29 20 14 . . . Cannons 6 | . . . 3 3 . . . AOE 13 | . . 4 7 2 . . . Classes Destroyed 15 | . 3 3 7 2 . . . Worker 1 | . . . 1 . . . . Builder 1 | . . . . 1 . . . Tunneler 1 | . . . 1 . . . . Hauler 7 | . . 1 4 2 . . . Recycler 5 | . . . 2 3 . . . Watcher 13 | . 2 4 4 3 . . . Swarmer 19 | . 6 6 . 7 . . . Grunt 45 | . 4 17 15 9 . . . Brawler 3 | . . 1 2 . . . . Duelist 1 | . . . 1 . . . . Sentry 16 | . . 9 6 1 . . . Specialist 4 | . . . 4 . . . . Hunter 2 | . . . 1 1 . . . Programmer 1 | . . . . 1 . . . Heavy 1 | . . . 1 . . . . Best Kill Streak 6 | . 4 6 4 6 . . . Combat Bots Only 6 | . 4 6 4 5 . . . Max Kills in Single Turn 3 | . 1 3 2 2 . . . Gunslinging 1 | . . 1 . . . . . Exploded 3 | . . 3 2 1 . . . Melee . | . . . . . . . . Uniques/NPCs Destroyed . | . . . . . . . . Combat | -11 -10 -9 -8 -7 -7 -7 -7 -------- Run | Yrd Mat Mat Mat Fac Was Fac DSF Hostile Shots Fired 544 | . 39 164 200 76 15 . 50 Missed 153 | . 9 58 38 22 . . 26 Damage Taken 7182 | . 300 1269 3177 1016 708 . 712 Core 1503 | . 45 222 521 190 82 . 443 Absorbed by Shields 36 | . . . . 36 . . . Redirected to Shielding 89 | . . . 89 . . . . Regen/Repaired (Parts) 747 | . 71 97 513 66 . . . Core Remaining (%) 57 | 100 82 44 5 . . . . Volleys Fired 316 | . 34 110 114 53 2 . 3 Largest 3 | . 2 2 2 3 3 . 2 Hottest 179 | . 80 121 132 179 172 . 83 Shots Fired 667 | . 67 214 218 156 6 . 6 Gun 615 | . 67 206 196 136 4 . 6 Cannon 37 | . . . 15 20 2 . . Launcher 15 | . . 8 7 . . . . Special . | . . . . . . . . Kinetic 226 | . 23 40 89 69 2 . 3 Thermal 383 | . 44 166 122 46 2 . 3 Explosive 13 | . . 6 7 . . . . Electromagnetic 45 | . . 2 . 41 2 . . Robot Hit Streak 24 | . 12 14 24 7 5 . 7 Robot Miss Streak 7 | . 3 7 5 7 1 . 2 Penetration Max 1 | . . . 1 1 . . . Secondary Targets 12 | . . 6 3 3 . . . Max Gunslinging Chain 1 | . . 1 1 1 . . . Shots Hit Robots 427 | . 45 130 150 94 5 . 3 Core Hits 219 | . 19 66 86 46 1 . 1 Critical Kills 1 | . . . . 1 . . . Critical Parts Destroyed 2 | . . . 2 . . . . Critical Strikes 14 | . . 8 4 2 . . . Burn 11 | . . 8 2 1 . . . Destroy 3 | . . . 2 1 . . . Melee Attacks . | . . . . . . . . Impact . | . . . . . . . . Slashing . | . . . . . . . . Piercing . | . . . . . . . . Sneak Attacks . | . . . . . . . . Combat Hostiles . | . . . . . . . . Follow-up Attacks . | . . . . . . . . Damage Inflicted 8980 | . 494 2401 3409 2521 97 . 58 Guns 6397 | . 463 1750 2344 1743 39 . 58 Cannons 576 | . . . 270 248 58 . . Explosions 1898 | . . 609 783 506 . . . Melee . | . . . . . . . . Ramming 109 | . 31 42 12 24 . . . Kinetic 2522 | . 147 224 1139 932 58 . 22 Thermal 4349 | . 316 1526 1475 958 38 . 36 Explosive 1318 | . . 535 783 . . . . Electromagnetic 682 | . . 74 . 607 1 . . Impact . | . . . . . . . . Slashing . | . . . . . . . . Piercing . | . . . . . . . . Highest Corruption 14 | . 2 . 4 2 14 14 14 Average Corruption 3 | . 2 . 3 2 9 14 14 Corruption Purged . | . . . . . . . . Corruption Blocked . | . . . . . . . . Effects 46 | . 2 . 8 22 9 2 3 Message Errors 6 | . . . 1 4 . . 1 Matter Fused 12 | . . . 3 6 2 1 . Heat Flow Errors 2 | . . . 1 . 1 . . Energy Discharges 9 | . 1 . . 4 1 1 2 Parts Rejected 2 | . . . . 1 1 . . Data Loss (minor) 6 | . 1 . 1 2 2 . . Data Loss (major) 3 | . . . . 3 . . . Misfires 2 | . . . 1 1 . . . Alerts 2 | . . . 1 1 . . . Misdirections 2 | . . . . . 2 . . Overload Shots . | . . . . . . . . Overflow Damage 151 | . . 16 54 81 . . . Projectiles 4 | . . . . 4 . . . Explosions 147 | . . 16 54 77 . . . Melee . | . . . . . . . . Knockbacks 19 | . 1 . 12 6 . . . Impact 2 | . 1 . . 1 . . . Kinetic 16 | . . . 11 5 . . . Secondary 1 | . . . 1 . . . . Self-Inflicted Damage 548 | . . 4 259 285 . . . Shots 11 | . . 2 5 4 . . . Rammed . | . . . . . . . . Targets Rammed 16 | . 6 6 1 3 . . . Kicked 16 | . 6 6 1 3 . . . Crushed . | . . . . . . . . Highest Temperature 380 | . 144 355 380 366 162 . . Average Temperature 88 | . 47 76 101 101 79 . . Received Heat Transfer 1929 | . 126 489 1080 234 . . . Effects 6 | . . 1 5 . . . . Shutdowns 2 | . . 1 1 . . . . Energy Bleed 1 | . . . 1 . . . . Interference 2 | . . . 2 . . . . Damage (minor) 1 | . . . 1 . . . . Siege Activations . | . . . . . . . . Robots Corrupted . | . . . . . . . . Combat Hostiles . | . . . . . . . . Parts Fried 3 | . . 1 . 2 . . . Impact Corruptions . | . . . . . . . . Robots Melted . | . . . . . . . . Combat Hostiles . | . . . . . . . . Parts Melted 27 | . 4 17 4 2 . . . Heat Transferred 9907 | . 725 4490 3219 1325 74 . 74 Parts Sabotaged . | . . . . . . . . Parts Stolen . | . . . . . . . . Parts Stripped . | . . . . . . . . Power Chain Reactions 2 | . . . . 2 . . . Alert | -11 -10 -9 -8 -7 -7 -7 -7 ------- Run | Yrd Mat Mat Mat Fac Was Fac DSF Peak Influence 777 | . 213 692 777 635 222 121 114 Initial 335 | . . 55 265 335 222 116 84 Average 415 | . 106 379 607 409 185 116 91 Maximum Alert Level 3 | . 1 2 3 2 1 . . Low Security (%) 22 | 100 75 32 . . 79 100 100 Level 1 25 | . 24 19 13 56 20 . . Level 2 40 | . . 48 53 43 . . . Level 3 10 | . . . 33 . . . . Level 4 . | . . . . . . . . Level 5 . | . . . . . . . . High Security . | . . . . . . . . Max Security . | . . . . . . . . Squads Dispatched 15 | . 1 3 6 4 . . 1 Investigation 5 | . . 2 3 . . . . Extermination 2 | . . . . 2 . . . Reinforcement 8 | . 1 1 3 2 . . 1 Assault . | . . . . . . . . Garrison . | . . . . . . . . Intercept . | . . . . . . . . Searches Triggered . | . . . . . . . . Construction Impeded 1 | . . . . 1 . . . Haulers Reinforced . | . . . . . . . . Active Scanning Responses . | . . . . . . . . Cargo Convoy Interrupts . | . . . . . . . . Stealth | -11 -10 -9 -8 -7 -7 -7 -7 --------- Run | Yrd Mat Mat Mat Fac Was Fac DSF Distress Signals 7 | . . 2 3 2 . . . Communications Jammed 37 | . . . 37 . . . . Distress Signals 32 | . . . 32 . . . . Times Spotted 154 | . 17 46 49 30 6 . 6 Peak Tracking Total 7 | . 3 7 6 4 6 . 5 Tactical Retreats 8 | . . 1 4 2 . . 1 Traps | -11 -10 -9 -8 -7 -7 -7 -7 ------- Run | Yrd Mat Mat Mat Fac Was Fac DSF Traps Triggered 10 | . 1 1 2 4 . . 2 Indirectly . | . . . . . . . . Trap Hack Attempts . | . . . . . . . . Triggered . | . . . . . . . . Disarmed . | . . . . . . . . Reprogrammed . | . . . . . . . . Reused . | . . . . . . . . Traps Extracted . | . . . . . . . . Installed . | . . . . . . . . Triggered . | . . . . . . . . Machines | -11 -10 -9 -8 -7 -7 -7 -7 ---------- Run | Yrd Mat Mat Mat Fac Was Fac DSF Machines Disabled 20 | . . 7 8 4 . . 1 Max in Single Turn 2 | . . 2 2 2 . . 1 Machines Repaired . | . . . . . . . . Machines Dismantled . | . . . . . . . . Machines Sabotaged . | . . . . . . . . Overloaded Fab Kills . | . . . . . . . . Hacking | -11 -10 -9 -8 -7 -7 -7 -7 --------- Run | Yrd Mat Mat Mat Fac Was Fac DSF Machines Accessed 36 | . 6 13 12 4 . 1 . Terminals 23 | . 4 9 7 2 . 1 . Fabricators . | . . . . . . . . Repair Stations 6 | . 1 2 2 1 . . . Recycling Units 5 | . 1 2 2 . . . . Scanalyzers 1 | . . . 1 . . . . Garrison Access 1 | . . . . 1 . . . Total Hacks 96 | . 19 33 33 10 . 1 . Successful 68 | . 14 23 23 7 . 1 . Failed 26 | . 4 9 10 3 . . . Catastrophic 1 | . 1 . . . . . . Database Lockouts 2 | . 1 1 . . . . . Manual . | . . . . . . . . Terminals 55 | . 11 21 17 5 . 1 . Fabricators . | . . . . . . . . Repair Stations 22 | . 4 8 8 2 . . . Recycling Units 11 | . 4 4 3 . . . . Scanalyzers 5 | . . . 5 . . . . Garrison Access 3 | . . . . 3 . . . Terminal Hacks 38 | . 7 15 11 4 . 1 . Record 13 | . 5 7 1 . . . . Prototype ID Bank 7 | . 1 1 4 1 . . . Open DSF 2 | . . . . 1 . 1 . Recycling Unit Index 1 | . . . 1 . . . . Alert Level 2 | . . . 1 1 . . . Locate Traps 3 | . . 2 . 1 . . . Dispatch Records 2 | . . . 2 . . . . Investigation Status 2 | . . 1 1 . . . . Reinforcement Status 1 | . . 1 . . . . . Hauler Manifests 3 | . 1 1 1 . . . . Zone Layout 2 | . . 2 . . . . . Fabricator Hacks . | . . . . . . . . Repair Station Hacks 17 | . 4 5 6 2 . . . Scan Component 9 | . 2 3 3 1 . . . Repair 8 | . 2 2 3 1 . . . Recycling Unit Hacks 9 | . 3 3 3 . . . . Report Inventory 7 | . 2 3 2 . . . . Retrieve Components 2 | . 1 . 1 . . . . Scanalyzer 3 | . . . 3 . . . . Insert Component 1 | . . . 1 . . . . Analyze 2 | . . . 2 . . . . Garrison Access Hacks 1 | . . . . 1 . . . Unlock Access 1 | . . . . 1 . . . Unauthorized Hacks . | . . . . . . . . Terminals . | . . . . . . . . Fabricators . | . . . . . . . . Repair Stations . | . . . . . . . . Recycling Units . | . . . . . . . . Scanalyzers . | . . . . . . . . Garrison Access . | . . . . . . . . Data Cores Recovered . | . . . . . . . . Used . | . . . . . . . . Hacking Detections 26 | . 6 10 7 3 . . . Full Trace Events 6 | . 1 2 3 . . . . Feedback Events . | . . . . . . . . Feedback Blocked . | . . . . . . . . Robot Schematics Acquired . | . . . . . . . . Robots Built . | . . . . . . . . Authchips . | . . . . . . . . Time . | . . . . . . . . Total Robot Build Rating . | . . . . . . . . Part Schematics Acquired 1 | . . . 1 . . . . Parts Built . | . . . . . . . . Authchips . | . . . . . . . . Time . | . . . . . . . . Total Part Build Rating . | . . . . . . . . Parts Repaired 8 | . 2 2 3 1 . . . Time 256 | . 52 64 114 26 . . . Parts Recycled . | . . . . . . . . Recycled Matter . | . . . . . . . . Retrieved Matter . | . . . . . . . . Retrieved Components 18 | . 9 . 9 . . . . Parts Scanalyzed 1 | . . . 1 . . . . Part Schematics Acquired 1 | . . . 1 . . . . Parts Damaged . | . . . . . . . . Bothacking | -11 -10 -9 -8 -7 -7 -7 -7 ------------ Run | Yrd Mat Mat Mat Fac Was Fac DSF Used RIF Installer . | . . . . . . . . Robots Hacked . | . . . . . . . . Non-combat . | . . . . . . . . Combat . | . . . . . . . . Robot Hacks Applied . | . . . . . . . . Relay Couplers Released . | . . . . . . . . Fabnet Peak Effective % . | . . . . . . . . Robots Rewired . | . . . . . . . . Allies Hacked . | . . . . . . . . Hacks Repelled . | . . . . . . . . Allies | -11 -10 -9 -8 -7 -7 -7 -7 -------- Run | Yrd Mat Mat Mat Fac Was Fac DSF Total Allies 1 | . . . . . 1 . . Largest Group 1 | . . . . . 1 . . Highest-Rated Group 31 | . . . . . 31 . . Highest-Rated Ally 31 | . . . . . 31 . . Total Orders . | . . . . . . . . Ally Attacks 15 | . . . . . 15 . . Total Damage 294 | . . . . . 294 . . Kills . | . . . . . . . . Allies Corrupted . | . . . . . . . . Allies Melted . | . . . . . . . . Intel | -11 -10 -9 -8 -7 -7 -7 -7 ------- Run | Yrd Mat Mat Mat Fac Was Fac DSF Robot Analysis Total . | . . . . . . . . Derelict Logs Recovered . | . . . . . . . . Drone Launches . | . . . . . . . . Drone Recoveries . | . . . . . . . . Exploration | -11 -10 -9 -8 -7 -7 -7 -7 ------------- Run | Yrd Mat Mat Mat Fac Was Fac DSF Turns Passed 6814 | 95 741 2060 2199 1438 177 34 70 Spaces Moved 3607 | 72 437 1242 991 643 120 36 66 Core 164 | 9 . . 3 . 96 36 20 Treads . | . . . . . . . . Legs 3393 | 63 437 1242 988 639 24 . . Wheels . | . . . . . . . . Hover . | . . . . . . . . Flight 50 | . . . . 4 . . 46 Fastest Speed 26 | 50 120 120 120 120 50 50 26 Average Speed 139 | 111 120 120 156 179 136 84 51 Slowest Speed 715 | 120 120 120 700 715 500 100 100 Overloaded Moves . | . . . . . . . . Propulsion Burnouts . | . . . . . . . . Robots Hopped 3 | . . . . . . . 3 Cave-ins Triggered . | . . . . . . . . Exploration Rate (%) 51 | 4 84 91 76 14 75 1 66 Regions Visited 7 Branch Regions . Pre-discovered Areas . | . . . . . . . . Known Exits Taken 1 | . . . . . . 1 . Unknown Exits Taken 4 | 1 1 1 1 . . . . Scrap Searched . | . . . . . . . . Spaces Dug . | . . . . . . . . Terrain Destroyed 216 | . . 16 127 73 . . . Melee . | . . . . . . . . Projectile 5 | . . . . 5 . . . AOE 211 | . . 16 127 68 . . . Terrain Rammed . | . . . . . . . . Walls Destroyed . | . . . . . . . . Machines Disabled . | . . . . . . . . Actions | -11 -10 -9 -8 -7 -7 -7 -7 --------- Run | Yrd Mat Mat Mat Fac Was Fac DSF Total 4776 | 87 592 1607 1425 808 127 39 91 Wait 513 | . 85 147 224 52 1 . 4 Move 3596 | 71 436 1241 990 643 119 35 61 Hop 2 | . . . . . . . 2 Pick Up 122 | 10 15 40 40 14 . 2 1 Fast Attach 31 | . 1 2 7 15 3 . 3 Attach 43 | 6 2 4 23 4 1 1 2 Detach . | . . . . . . . . Swap 51 | . 4 25 14 8 . . . Drop 71 | . 9 32 12 16 1 1 . Fire 316 | . 34 110 114 53 2 . 3 Melee . | . . . . . . . . Ram . | . . . . . . . . Kick 16 | . 6 6 1 3 . . . Crush . | . . . . . . . . Escape Stasis 15 | . . . . . . . 15 Rewire . | . . . . . . . . Trap . | . . . . . . . . Miscellaneous . | . . . . . . . . Route ------- -11/Scrapyard -10/Materials (discovered 3 exits: *Mat x2 / [*Min]) -9/Materials (discovered 4 exits: *Mat x3 / [*Min]) -8/Materials (discovered 2 exits: *Fac x2) -7/Factory -7/Waste -7/Factory (discovered 2 exits: [*Fac] / DSF) -7/DSF History --------- Turn | Location | Event 3 | -11/Scrapyard | Discovered new exit (range 15) 96 | -11/Scrapyard | Entered Materials 257 | -10/Materials | Discovered new exit (range 10) 320 | -10/Materials | Build established: Mutant 449 | -10/Materials | Central database locked down 671 | -10/Materials | Discovered new exit (range 13) 737 | -10/Materials | Repaired Aluminum Leg 763 | -10/Materials | Repaired Lgt. Assault Rifle 775 | -10/Materials | Discovered new exit (range 15) 837 | -10/Materials | Entered another Materials area 837 | -9/Materials | Evolved 2 slots: Propulsion x2 859 | -9/Materials | Build established: Scavenger-Mutant 1074 | -9/Materials | Discovered new exit (range 7) 1369 | -9/Materials | Discovered new exit (range 7) 1450 | -9/Materials | Build established: Mutant 2087 | -9/Materials | Repaired Aluminum Leg 2220 | -9/Materials | Build established: Scavenger-Mutant 2271 | -9/Materials | Repaired Lgt. Nuclear Core 2296 | -9/Materials | Core integrity fell below 50% 2514 | -9/Materials | Central database locked down 2538 | -9/Materials | Discovered new exit (range 10) 2858 | -9/Materials | Discovered new exit (range 11) 2897 | -9/Materials | Entered another Materials area 2897 | -8/Materials | Evolved 2 slots: Utility x2 2920 | -8/Materials | Build established: Mutant 3659 | -8/Materials | Lost 4 parts (1p1n1u1w) 3780 | -8/Materials | Core integrity fell below 50% 3951 | -8/Materials | Discovered new exit (range 5) 4387 | -8/Materials | Build established: Scavenger-Mutant 4664 | -8/Materials | Core integrity fell below 20% 4737 | -8/Materials | Lost 10 parts (1p4n2u3w) 4811 | -8/Materials | Repaired Lrg. Storage Unit 5001 | -8/Materials | Repaired Gauss Rifle 5046 | -8/Materials | Repaired Hvy. Laser 5060 | -8/Materials | Discovered new exit (range 8) 5096 | -8/Materials | Entered Factory 5096 | -7/Factory | Evolved 2 slots: Propulsion x1, Weapon x1 5338 | -7/Factory | Repaired Aluminum Leg 5416 | -7/Factory | Build established: Scavenger-Gunner 5773 | -7/Factory | Build established: Scavenger-Tank 5856 | -7/Factory | Identified exit to Garrison 6203 | -7/Factory | Lost 3 parts (1n1u1w) 6534 | -7/Factory | Sucked down chute 6534 | -7/Factory | Entered Waste 6535 | -7/Waste | Met a frightened Derelict 6539 | -7/Waste | Spotted C-40 Crusher 6549 | -7/Waste | EMP discharged 6560 | -7/Waste | Crushed by Compactor (1 part destroyed, 2 dropped) 6575 | -7/Waste | Crushed by Compactor (1 part destroyed) 6580 | -7/Waste | Crushed by Compactor (0 parts destroyed, 1 dropped) 6584 | -7/Waste | Spotted C-40 Crusher 6588 | -7/Waste | Crushed by Compactor (0 parts destroyed, 1 dropped) 6611 | -7/Waste | Crushed by Compactor (0 parts destroyed, 2 dropped) 6644 | -7/Waste | Spotted C-40 Crusher 6649 | -7/Waste | EMP discharged 6649 | -7/Waste | System corruption reached 10% 6657 | -7/Waste | Spotted C-40 Crusher 6662 | -7/Waste | Spotted C-40 Crusher 6670 | -7/Waste | Crushed by Compactor (1 part destroyed, 1 dropped) 6676 | -7/Waste | Spotted C-40 Crusher 6705 | -7/Waste | Crushed by Compactor (1 part destroyed) 6707 | -7/Waste | Discovered new exit (range 10) 6711 | -7/Waste | Entered Factory 6726 | -7/Factory | Discovered new exit (range 5) 6744 | -7/Factory | Identified exit to DSF 6745 | -7/Factory | Entered DSF 6779 | -7/DSF | Core integrity fell below 50% 6780 | -7/DSF | Additional patrols routed to DSF 6810 | -7/DSF | Core integrity fell below 20% 6815 | -7/DSF | Destroyed by C-17 Slicer with Blade Saw Last Messages --------------- dispatching Cutter reinforcements to area. 06803_ Penetrated by Slug. 06803_ Gauss Rifle destroyed. 06803_ Cesium-ion Thruster destroyed. 06805_ Knocked back. 06805_ A-02 Transporter destroyed. 06805_ A-02 Transporter knocked back. 06806_ Knocked back. 06807_ Cesium-ion Thruster destroyed. 06807_ Critical hit (Blast). 06809_ Cesium-ion Thruster destroyed. 06809_ Knocked back. 06809_ C-17 Slicer system corrupted by crushing effect. 06811_ Hvy. Particle Gun severed. 06812_ Knocked back. 06812_ Acquired 7 matter. 06813_ 5A1RWM,Z7V>OAIDFDONZTXTYPAEL# ZOW8HL 06814_ Cesium-ion Thruster destroyed. [Achievement: 5k Club] Map ----- +----------------------------------------------------+ | ????????????????????#% !!!!!#########"""""#?????? | | ????????????????????# !!!!!#!!!# ##"""""#?????? | | ????????????????????# ^ ""#?????? | | ????????????????????# """""???? | | ????????????????????### ###!!!#!!## ""###???? | | ????????????????????## ###!!!#!!### ###?????? | | ????????????????????# ]]########?# #???????? | | ????????????????????# ]]#????????! !#??????? | | ????????????????????# ]]#????????! !#??????? | | ????????????????????### ###???????## ##??????? | | ????????????????????#]] !!#???????? ???????? | | ????????????????????#]] !!#???????? ???????? | | ????????????????????#]] !!#???????? ???????? | | ????????????#???###?### ###?###????# ##??????? | | ????????????# ?#!!!?## ##?]]]#?? ## [???????? | | ????????? ## #!!!##a a##]]]# ## [???????? | | ???????? /???????? | | ???????? H /???????? | | ???????? * ?????????? | | ????????? ##!!!#!!!## !%##!!!#===##??????????? | | ????????????#!??#!!!?## ##?!!!#??=#???????????? | | ????????????????###?##; ###?###???????????????? | | ????????????????????#! !!#???????????????????? | | ????????????????????#! !!#???????????????????? | | ????????????????????#!! cc!!#???????????????????? | | ????????????????????### @c###???????????????????? | | ????????????????????#]] ]]#???????????????????? | | ????????????????????#]] ]]#???????????????????? | | ????????????????????#]] ]]#???????????????????? | | ????????????????????### ###???????????????????? | | ??????????????????????# #?????????????????????? | | ?????????????????????? ?????????????????????? | | ????????????????????? ^ ?????????????????????? | | ?????????????????????//=== ????????????????????? | | ????????????????????#//=== ????????????????????? | | ????????????????????####;####???????????????????? | | ???????????????????????###??????????????????????? | | ????????????????????????????????????????????????? | | ????????????????????????????????????????????????? | | ????????????????????????????????????????????????? | | ????????????????????????????????????????????????? | | ????????????????????????????????????????????????? | | ????????????????????????????????????????????????? | | | | | | | | | | | | | | | +----------------------------------------------------+ Best States ------------- Heat Dissipation 67 Energy Generation 17 Energy Capacity 300 Matter Stores 371 Matter Capacity 400 Sight Range 16 Robot Scan Range 14 Terrain Scan Density 10 ECM Strength 2 Jamming Range 12 Armor Coverage 600 Utility Shielding 66 Evasion (%) 63 Core Analysis 6 Particle Charging 15 Item Schematics ----------------- Gauss Rifle | -8/Materials | Scanalyzed Robot Schematics ------------------ None Fabricated ------------ Nothing Alien Tech Used ----------------- None Achievements -------------- 5k Club Close Call Librarian Made in Tau Ceti IV Please Form A Line Shopping List System Compromised Total Silence Challenges ------------ None Game ------ Seed LightningRefineryDriver Manual? 0 Play Time 02:11:24 Cumulative 7.9 hours Start 2024.03.02 @ 16:02:52 End 2024.03.02 @ 19:07:12 Sessions 1 Manual Loads 0 Difficulty Rogue Special Mode None Game No. 6 Rogue 6 Adventurer 0 Explorer 0 Win Type - Total 0 Types 0/0/0/0/0/0/0/0/0 Lore% 5 Gallery% 9 Achievement% 9 Wizard Run 0 Options --------- Layout 1 ASCII 1 Keyboard 0 Movement Mouse Keybinds 0 Fullscreen 1 Font 24/Smallcaps Map View 50x35 Zoom Use 0% Tactical HUD 1 Map Filters NONE Filters NONE Steam 1 RUN: 6fda2e64-f918-43e3-914c-a3eff1ba8cce